Cogmind - Beta 13 @@@ ROGUE MODE // 2024.05.10 @ 17:39:16 Player: BionicBot Result: Destroyed self with Mini Grenade Launcher Performance ------------- Evolutions (1) 500 Regions Visited (2) 400 Robots Destroyed (15) 75 Value Destroyed (382) 382 Prototype IDs (0) 0 Alien Tech Used (0) 0 Bonus (0) 0 TOTAL SCORE: 1357 Bonus ------- None Cogmind --------- Core Integrity 0/400 Matter 220/300 Energy 40/100 System Corruption 0% Temperature Hot (214) Movement Core (400) Ox7 Location -9/Materials Parts ------- > --- POWER (1) -------- (None) > --- PROPULSION (2) --- (None) > --- UTILITY (4) ------ Large Storage Unit Visual Processing Unit Signal Interpreter Seismic Detector > --- WEAPON (2) ------- Mini Grenade Launcher Mining Laser > --- INVENTORY (15) --- Light Ion Engine Light Treads Light Treads Wheel Wheel Sensor Array Improved Terrain Scanner Medium Armor Plating Peak State ------------ > --- POWER ------------ Improved Ion Engine > --- PROPULSION ------- Wheel Wheel > --- UTILITY ---------- Large Storage Unit Visual Processing Unit Signal Interpreter Seismic Detector > --- WEAPON ----------- Medium Laser Medium Laser > --- INVENTORY -------- Ion Engine Light Ion Engine Light Treads Light Treads Wheel Wheel Sensor Array Improved Terrain Scanner EM Pulse Gun Mining Laser [Rating: 12] Favorites ----------- Power Ion Engine Engine Ion Engine Propulsion Wheel Wheel Wheel Utility Seismic Detector Device Seismic Detector Storage Large Storage Unit Processor Visual Processing Unit Weapon Medium Laser Energy Gun Medium Laser Launcher Mini Grenade Launcher Special Weapon Mining Laser Build | -11 -10 -9 ------- Run | Yrd Mat Mat Slots Evolved 2 | . . 2 Power . | . . . Propulsion . | . . . Utility 2 | . . 2 Weapon . | . . . Parts Attached 18 | 9 3 6 Power 3 | 2 . 1 Engine 3 | 2 . 1 Core . | . . . Reactor . | . . . Propulsion 2 | 2 . . Treads . | . . . Leg . | . . . Wheel 2 | 2 . . Hover . | . . . Flight . | . . . Utility 7 | 2 3 2 Device 2 | 1 1 . Storage 3 | 1 2 . Processor 2 | . . 2 Hackware . | . . . Protection . | . . . Artifact . | . . . Weapon 6 | 3 . 3 Energy Gun 4 | 3 . 1 Energy Cannon . | . . . Ballistic Gun . | . . . Ballistic Cannon . | . . . Launcher 1 | . . 1 Special Weapon 1 | . . 1 Impact Weapon . | . . . Slashing Weapon . | . . . Piercing Weapon . | . . . Special Melee Weapon . | . . . Unidentified Prototypes . | . . . Parts Lost 6 | . . 6 Power 1 | . . 1 Propulsion 2 | . . 2 Utility . | . . . Weapon 3 | . . 3 Highest Loss Streak 6 | . . 6 To Critical Strikes . | . . . Average Slot Usage (%) 97 | . 99 95 Engine 12 | . 14 9 Wheel 24 | . 28 19 Device 12 | . 13 11 Storage 12 | . 14 11 Processor 7 | . . 22 Energy Gun 24 | . 28 18 Naked Turns . | . . . Heaviest Build 32 | 15 30 32 Greatest Support 20 | 20 20 20 Greatest Overweight (x) 1 | . 1 1 Average Overweight (x) . | . . 1 Largest Inventory Capacity 15 | 8 15 15 Average Capacity 11 | 7 11 15 Most Carried 11 | 7 11 11 Average Carried 7 | 3 8 9 Final Capacity 15 | 8 15 15 Final Carried 11 | 7 11 8 Class Distribution -------------------- 100% | Mutant Dominant Class ---------------- Mutant | -10/Materials Mutant | -9/Materials Resources | -11 -10 -9 ----------- Run | Yrd Mat Mat Matter Collected 320 | 290 30 . Remotely . | . . . Salvage Created 500 | 160 189 151 Parts 21 | 7 8 6 Haulers Intercepted 1 | . 1 . Recyclers Shooed 1 | 1 . . Parts Field Recycled . | . . . Retrieved Matter . | . . . Parts Self-Destructed . | . . . Prevented . | . . . Kills | -11 -10 -9 ------- Run | Yrd Mat Mat Combat Hostiles Destroyed 8 | . 3 5 Guns 4 | . 3 1 AOE 4 | . . 4 Classes Destroyed 6 | 2 3 1 Tunneler 4 | 4 . . Hauler 1 | . 1 . Recycler 1 | 1 . . Watcher 1 | . 1 . Grunt 6 | . 3 3 Sentry 2 | . . 2 Best Kill Streak 4 | 4 2 4 Combat Bots Only 4 | . 2 4 Max Kills in Single Turn 2 | 1 1 2 Gunslinging . | . . . Exploded 2 | . . 2 Melee . | . . . Uniques/NPCs Destroyed . | . . . Combat | -11 -10 -9 -------- Run | Yrd Mat Mat Hostile Shots Fired 63 | . 18 45 Missed 7 | . 2 5 Damage Taken 962 | . 192 770 Core 455 | . 50 405 Absorbed by Shields . | . . . Core Remaining (%) 90 | 100 80 . Volleys Fired 52 | 14 21 17 Largest 2 | 2 2 2 Hottest 100 | 100 100 100 Shots Fired 90 | 28 41 21 Gun 81 | 28 41 12 Cannon . | . . . Launcher 5 | . . 5 Special 4 | . . 4 Kinetic . | . . . Thermal 84 | 28 41 15 Explosive 5 | . . 5 Electromagnetic 1 | . . 1 Robot Hit Streak 10 | 6 10 10 Robot Miss Streak 3 | 3 2 1 Penetration Max . | . . . Secondary Targets . | . . . Shots Hit Robots 63 | 17 28 18 Core Hits 28 | 6 11 11 Critical Kills . | . . . Critical Parts Destroyed . | . . . Critical Strikes 7 | 4 2 1 Burn 7 | 4 2 1 Melee Attacks . | . . . Impact . | . . . Slashing . | . . . Piercing . | . . . Sneak Attacks . | . . . Combat Hostiles . | . . . Follow-up Attacks . | . . . Damage Inflicted 1079 | 213 368 498 Guns 704 | 213 368 123 Cannons . | . . . Explosions 303 | . . 303 Melee . | . . . Ramming . | . . . Kinetic . | . . . Thermal 764 | 213 368 183 Explosive 303 | . . 303 Electromagnetic 12 | . . 12 Impact . | . . . Slashing . | . . . Piercing . | . . . Highest Corruption . | . . . Average Corruption . | . . . Corruption Purged . | . . . Corruption Blocked . | . . . Overload Shots . | . . . Overflow Damage . | . . . Projectiles . | . . . Explosions . | . . . Melee . | . . . Knockbacks . | . . . Impact . | . . . Kinetic . | . . . Secondary . | . . . Self-Inflicted Damage 236 | . . 236 Shots 5 | . . 5 Rammed . | . . . Targets Rammed . | . . . Kicked . | . . . Crushed . | . . . Highest Temperature 375 | 331 375 289 Average Temperature 141 | 126 118 212 Received Heat Transfer 381 | . 120 261 Effects 11 | . 6 5 Shutdowns 1 | . 1 . Energy Bleed 2 | . 2 . Interference 8 | . 3 5 Siege Activations . | . . . Robots Corrupted . | . . . Combat Hostiles . | . . . Parts Fried . | . . . Impact Corruptions . | . . . Robots Melted . | . . . Combat Hostiles . | . . . Parts Melted 8 | 4 3 1 Heat Transferred 2703 | 925 1221 557 Parts Sabotaged . | . . . Parts Stolen . | . . . Parts Stripped . | . . . Power Chain Reactions . | . . . Alert | -11 -10 -9 ------- Run | Yrd Mat Mat Peak Influence 186 | 25 182 186 Initial 76 | . 16 76 Average 86 | 10 104 101 Maximum Alert Level . | . . . Low Security (%) 100 | 100 100 100 Level 1 . | . . . Level 2 . | . . . Level 3 . | . . . Level 4 . | . . . Level 5 . | . . . High Security . | . . . Max Security . | . . . Squads Dispatched 1 | . 1 . Investigation . | . . . Extermination . | . . . Reinforcement 1 | . 1 . Assault . | . . . Garrison . | . . . Intercept . | . . . Searches Triggered . | . . . Construction Impeded . | . . . Haulers Reinforced . | . . . Active Scanning Responses . | . . . Cargo Convoy Interrupts . | . . . Stealth | -11 -10 -9 --------- Run | Yrd Mat Mat Distress Signals 1 | . 1 . Communications Jammed . | . . . Distress Signals . | . . . Times Spotted 12 | . 6 6 Peak Tracking Total 5 | . 3 5 Tactical Retreats 1 | . 1 . Traps | -11 -10 -9 ------- Run | Yrd Mat Mat Traps Triggered . | . . . Indirectly . | . . . Trap Hack Attempts . | . . . Triggered . | . . . Disarmed . | . . . Reprogrammed . | . . . Reused . | . . . Traps Extracted . | . . . Installed . | . . . Triggered . | . . . Machines | -11 -10 -9 ---------- Run | Yrd Mat Mat Machines Disabled 1 | . . 1 Max in Single Turn 1 | . . 1 Machines Repaired . | . . . Machines Dismantled . | . . . Machines Sabotaged . | . . . Overloaded Fab Kills . | . . . Hacking | -11 -10 -9 --------- Run | Yrd Mat Mat Machines Accessed 5 | . 2 3 Terminals 5 | . 2 3 Fabricators . | . . . Repair Stations . | . . . Recycling Units . | . . . Scanalyzers . | . . . Garrison Access . | . . . Total Hacks 19 | . 9 10 Successful 7 | . 3 4 Failed 11 | . 5 6 Catastrophic 1 | . . 1 Database Lockouts 1 | . 1 . Manual 15 | . 9 6 Terminals 19 | . 9 10 Fabricators . | . . . Repair Stations . | . . . Recycling Units . | . . . Scanalyzers . | . . . Garrison Access . | . . . Terminal Hacks 3 | . 2 1 Part Schematic 1 | . 1 . Branch Access Points 2 | . 1 1 Fabricator Hacks . | . . . Repair Station Hacks . | . . . Recycling Unit Hacks . | . . . Scanalyzer . | . . . Garrison Access Hacks . | . . . Unauthorized Hacks 4 | . 1 3 Terminals 4 | . 1 3 Botnet 4 | . 1 3 Fabricators . | . . . Repair Stations . | . . . Recycling Units . | . . . Scanalyzers . | . . . Garrison Access . | . . . Data Cores Recovered . | . . . Used . | . . . Hacking Detections 5 | . 2 3 Full Trace Events . | . . . Feedback Events . | . . . Feedback Blocked . | . . . Robot Schematics Acquired . | . . . Robots Built . | . . . Authchips . | . . . Time . | . . . Total Robot Build Rating . | . . . Part Schematics Acquired 1 | . 1 . Parts Built . | . . . Authchips . | . . . Time . | . . . Total Part Build Rating . | . . . Parts Repaired . | . . . Time . | . . . Parts Recycled . | . . . Recycled Matter . | . . . Retrieved Matter . | . . . Retrieved Components . | . . . Parts Scanalyzed . | . . . Part Schematics Acquired . | . . . Parts Damaged . | . . . Bothacking | -11 -10 -9 ------------ Run | Yrd Mat Mat Used RIF Installer . | . . . Robots Hacked . | . . . Non-combat . | . . . Combat . | . . . Robot Hacks Applied . | . . . Relay Couplers Released . | . . . Fabnet Peak Effective % . | . . . Robots Rewired . | . . . Allies Hacked . | . . . Hacks Repelled . | . . . Allies | -11 -10 -9 -------- Run | Yrd Mat Mat Total Allies . | . . . Largest Group . | . . . Highest-Rated Group . | . . . Highest-Rated Ally . | . . . Total Orders . | . . . Ally Attacks . | . . . Total Damage . | . . . Kills . | . . . Allies Corrupted . | . . . Allies Melted . | . . . Intel | -11 -10 -9 ------- Run | Yrd Mat Mat Robot Analysis Total . | . . . Derelict Logs Recovered . | . . . Drone Launches . | . . . Drone Recoveries . | . . . Exploration | -11 -10 -9 ------------- Run | Yrd Mat Mat Turns Passed 705 | 125 367 213 Spaces Moved 499 | 82 336 81 Core 6 | 6 . . Treads . | . . . Legs . | . . . Wheels 493 | 76 336 81 Hover . | . . . Flight . | . . . Fastest Speed 50 | 50 80 95 Average Speed 84 | 77 84 95 Slowest Speed 95 | 80 95 95 Overloaded Moves . | . . . Propulsion Burnouts . | . . . Robots Hopped . | . . . Cave-ins Triggered . | . . . Exploration Rate (%) 21 | 3 52 10 Regions Visited 2 Branch Regions . Pre-discovered Areas . | . . . Known Exits Taken . | . . . Unknown Exits Taken 2 | 1 1 . Scrap Searched . | . . . Spaces Dug . | . . . Terrain Destroyed 31 | . . 31 Melee . | . . . Projectile . | . . . AOE 31 | . . 31 Terrain Rammed . | . . . Walls Destroyed . | . . . Machines Disabled . | . . . Actions | -11 -10 -9 --------- Run | Yrd Mat Mat Total 678 | 110 378 190 Wait 96 | . 13 83 Move 497 | 81 335 81 Hop . | . . . Pick Up 11 | 6 3 2 Fast Attach 8 | 7 1 . Attach 5 | . . 5 Detach 1 | . 1 . Swap 5 | 2 2 1 Drop 3 | . 2 1 Fire 52 | 14 21 17 Melee . | . . . Ram . | . . . Kick . | . . . Crush . | . . . Escape Stasis . | . . . Rewire . | . . . Trap . | . . . Miscellaneous . | . . . Route ------- -11/Scrapyard -10/Materials (discovered 3 exits: *Mat / *Min x2) -9/Materials (discovered 1 exit: Min) History --------- Turn | Location | Event 5 | -11/Scrapyard | Discovered new exit (range 15) 126 | -11/Scrapyard | Entered Materials 277 | -10/Materials | Discovered new exit (range 16) 283 | -10/Materials | Identified exit to Mines 283 | -10/Materials | Central database locked down 312 | -10/Materials | Build established: Mutant 493 | -10/Materials | Entered another Materials area 493 | -9/Materials | Evolved 2 slots: Utility x2 540 | -9/Materials | Identified exit to Mines 687 | -9/Materials | Core integrity fell below 50% 703 | -9/Materials | Core integrity fell below 20% 706 | -9/Materials | Destroyed self with Mini Grenade Launcher Last Messages --------------- 00668_ Critical hit (Burn: +37). 00668_ Med. Laser destroyed. 00671_ Wheel destroyed. 00677_ Overheating: System interference. 00677_ Seismic Detector temporarily disabled. 00677_ Signal Interpreter temporarily disabled. 00677_ Seismic Detector temporarily disabled. 00678_ Med. Laser destroyed. 00679_ Critical hit (Burn: +37). 00680_ Wheel destroyed. 00680_ EM Pulse Gun destroyed. 00681_ G-34 Mercenary destroyed. 00681_ G-47 Trooper destroyed. 00681_ Electrolysis Chamber disabled. 00683_ G-34 Mercenary destroyed. 00686_ Imp. Ion Engine destroyed. 00696_ The unstable cave ceiling collapses. 00699_ Overheating: System interference. 00699_ Mining Laser temporarily disabled. 00706_ Y-45 Defender destroyed. Map ----- +----------------------------------------------------+ | ???????????????????# ##* # | | ???????????????????# ## # | | ??????????????????## ## # | | ???????############ # """# | | ???? # """# | | ???? T + """# | | ?????"" # # | | ??????" ######### # """# | | ??????"???????????### # """# | | ????????????????????# # """# | | ????????????????????# # # | | ????????????????????# ####### | | ???????????????###### #?????? | | ???????????????# # ####### | | ???????????????# "" # # ] # | | ???????????????# T" # # T # | | ???????????????# "" # # # | | ???????????????# + # # | | ???????????????# # # # | | ???????????????# # # """ # | | ???????????????# # # """ # | | ???????????????# ! # " # | | ???????????????###### | | ????????????????????# [ # | | ????????????????????# = | | ????????# ####### @ | | ????????# | | ???????? | | ????????# | | ????????# ########+# # | | ?????????? ?????????? ##### | | ????????????????????[ ? #???? | | ???????????????????* #???? | | ?????????????????? ?""" #???? | | ????????????????? ??""" #???? | | ????????????????# ? """ ????? | | ????????????????# ?? """ ????? | | ????????????????# ?????? ????? | | ????????????????##???????#????? | | ??????????????????????????????? | | ??????????????????????????????? | | ??????????????????????????????? | | ??????????????????????????????? | | ??????????????????????????????? | | ??????????????????????????????? | | ??????????????????????????????? | | ??????????????????????????????? | | ??????????????????????????????? | | ??????????????????????????????? | | ??????????????????????????????? | +----------------------------------------------------+ Best States ------------- Heat Dissipation 28 Energy Generation 12 Energy Capacity 265 Matter Stores 300 Matter Capacity 300 Sight Range 18 Terrain Scan Range 16 Terrain Scan Density 10 Evasion (%) 44 Item Schematics ----------------- Hcp. Storage Unit | -10/Materials | Hacked Robot Schematics ------------------ None Fabricated ------------ Nothing Alien Tech Used ----------------- None Achievements -------------- None Challenges ------------ None Game ------ Seed LauncherSuperchargedFirepult Manual? 0 Play Time 00:13:22 Cumulative 57.5 hours Start 2024.05.10 @ 17:25:02 End 2024.05.10 @ 17:39:16 Sessions 1 Manual Loads 0 Difficulty Rogue Special Mode None Game No. 54 Rogue 54 Adventurer 0 Explorer 0 Win Type - Total 1 Types 1/0/0/0/0/0/0/0/0 Lore% 13 Gallery% 36 Achievement% 32 Wizard Run 0 Options --------- Layout 0 ASCII 0 Keyboard 1 Movement Numpad Keybinds 0 Fullscreen 1 Font 18/SmallcapsGlow Map View 76x50 Zoom Use 10% Tactical HUD 1 Map Filters NONE Filters NONE Steam 1 RUN: 3da99bb3-1e70-4c7d-8506-db85b0edd70c